bitfinex/quotes_BTCUSD_20250902
["timestamp","ask_amount","ask_price","bid_price","bid_amount"]
[1756823734507,0.27835932,111880.0,111870.0,0.23255]
[1756823734716,0.27835932,111880.0,111870.0,0.23052]
[1756823734717,0.33189993,111880.0,111870.0,0.23052]
[1756823735088,0.33055993,111880.0,111870.0,0.23558]
[1756823735294,0.33189993,111880.0,111870.0,0.23558]
[1756823735527,0.33189993,111880.0,111870.0,0.23052]
[1756823735736,0.27835932,111880.0,111870.0,0.23255]
[1756823735957,0.00634037,111880.0,111870.0,0.23558]
[1756823737470,0.00434037,111880.0,111870.0,0.90386489]
[1756823737682,0.00434037,111880.0,111870.0,0.90486489]
[1756823737970,0.00434037,111880.0,111870.0,0.48423931]
[1756823738201,0.00434037,111880.0,111870.0,0.90486489]
[1756823738638,0.00434037,111880.0,111870.0,0.74310489]
[1756823738857,0.00434037,111880.0,111870.0,0.90482489]
[1756823739077,0.00434037,111880.0,111870.0,0.48419931]
[1756823739313,0.18310333,111880.0,111870.0,0.14370038]
[1756823739561,0.18444333,111880.0,111870.0,0.12073156]
[1756823739785,0.31834097,111880.0,111870.0,0.23148]
[1756823740240,0.31834097,111880.0,111870.0,0.001]
[1756823740459,0.73122097,111880.0,111870.0,0.16272]
[1756823740683,0.61501932,111880.0,111870.0,0.16272]
[1756823740915,0.27501932,111880.0,111870.0,0.16474]
[1756823741136,0.27501932,111880.0,111870.0,0.16783]
[1756823741356,0.27635932,111880.0,111870.0,0.16272]
[1756823741636,0.18310333,111880.0,111870.0,0.16374]
[1756823741888,0.18310333,111880.0,111870.0,0.39355049]
[1756823741889,0.00014037,111880.0,111870.0,0.39355049]
[1756823742148,0.17890333,111880.0,111870.0,0.39355049]
[1756823742410,0.17890333,111880.0,111870.0,0.21477156]
[1756823742625,0.00014037,111880.0,111870.0,0.21477156]
[1756823742903,0.17890333,111880.0,111870.0,0.39355049]
[1756823743123,0.17890333,111880.0,111870.0,0.21477156]
[1756823744004,0.22180498,111880.0,111870.0,0.04794156]
[1756823744230,0.22180498,111880.0,111870.0,0.20966156]
[1756823744454,0.17877893,111870.0,111860.0,0.05103156]
[1756823744684,0.17877893,111870.0,111860.0,0.21477156]
[1756823744899,0.17877893,111870.0,111860.0,0.39356648]
[1756823745116,0.17877893,111870.0,111860.0,0.21477156]
[1756823745331,0.17877893,111870.0,111860.0,0.39356648]
[1756823745988,0.17877893,111870.0,111860.0,0.39556648]
[1756823746450,0.09205636,111880.0,111870.0,0.17877893]
[1756823746693,0.17890333,111880.0,111870.0,0.23183049]
[1756823746937,0.00014037,111880.0,111870.0,0.65245607]
[1756823747164,0.00014037,111880.0,111870.0,0.67339489]
[1756823747727,0.00014037,111880.0,111870.0,0.25276931]
[1756823748032,0.00014037,111880.0,111870.0,0.49461596]
[1756823748243,0.00014037,111880.0,111870.0,0.76631088]
[1756823750049,0.00014037,111880.0,111870.0,0.92803088]
[1756823750691,0.00014037,111880.0,111870.0,0.5074053]
[1756823750916,0.00014037,111880.0,111870.0,0.92803088]
[1756823751159,0.00014037,111880.0,111870.0,0.96782519]
[1756823752134,0.00014037,111880.0,111870.0,0.96778519]
[1756823752586,0.00014037,111880.0,111870.0,1.23028519]
[1756823753104,0.00014037,111880.0,111870.0,1.61747901]
[1756823753299,0.00014037,111880.0,111870.0,1.45579901]
[1756823753770,0.00014037,111880.0,111870.0,1.61747901]
[1756823754227,0.00014037,111880.0,111870.0,1.57028519]
[1756823755288,0.00014037,111880.0,111870.0,0.98797961]
[1756823755510,0.00014037,111880.0,111870.0,0.6081853]
[1756823755950,0.00014037,111880.0,111870.0,0.39451049]
[1756823756175,0.00014037,111880.0,111870.0,0.81513607]
[1756823756404,0.00014037,111880.0,111870.0,0.83607489]
[1756823757503,0.00014037,111880.0,111870.0,0.92799088]
[1756823759773,0.00148037,111880.0,111870.0,0.41540931]
[1756823759986,0.18024333,111880.0,111870.0,0.41120931]
[1756823760227,0.00148037,111880.0,111870.0,0.41120931]
[1756823760440,0.00014037,111880.0,111870.0,0.41120931]
[1756823760615,0.00014037,111880.0,111870.0,0.83183489]
[1756823761133,0.17890333,111880.0,111870.0,0.83183489]
[1756823761343,0.18024333,111880.0,111870.0,0.41120931]
[1756823761997,0.18024333,111880.0,111870.0,0.67370931]
[1756823762240,0.18024333,111880.0,111870.0,0.001]
[1756823762241,0.31468479,111880.0,111870.0,0.001]
[1756823762472,0.76902906,111880.0,111870.0,0.16264]
[1756823763185,0.76275248,111880.0,111870.0,0.16264]
[1756823763411,0.78963419,111880.0,111870.0,0.16264]
[1756823763655,0.74793872,111880.0,111870.0,0.16264]
[1756823764594,0.72865859,111880.0,111870.0,0.13264]
[1756823764821,0.72782859,111880.0,111870.0,0.13264]
[1756823765043,0.71209103,111880.0,111870.0,0.13264]
[1756823765269,0.64004103,111880.0,111870.0,0.13264]
[1756823765495,0.61315932,111880.0,111860.0,0.11728787]
[1756823765722,0.17990333,111880.0,111870.0,0.21049156]
[1756823766171,0.17990333,111880.0,111870.0,0.38927049]
[1756823766390,0.17990333,111880.0,111870.0,1.06426436]
[1756823766391,0.00114037,111880.0,111870.0,1.06426436]
[1756823766851,0.00114037,111880.0,111870.0,0.41020931]
[1756823767089,0.00114037,111880.0,111870.0,1.15618035]
[1756823767281,0.00014037,111880.0,111870.0,1.15618035]
[1756823767505,0.00014037,111880.0,111870.0,1.49618035]
[1756823769018,0.00014037,111880.0,111870.0,1.89618035]
[1756823770136,0.00014037,111880.0,111870.0,1.73454035]
[1756823770365,0.00014037,111880.0,111870.0,1.0804853]
[1756823770635,0.00014037,111880.0,111870.0,1.89814035]
[1756823771279,0.00014037,111880.0,111870.0,1.90114035]
[1756823773715,1e-08,111880.0,111870.0,1.90114035]
[1756823774380,1e-08,111880.0,111870.0,1.95114035]
[1756823774775,1e-08,111880.0,111870.0,1.78954035]
[1756823774980,1e-08,111880.0,111870.0,1.95110035]
[1756823775206,1e-08,111880.0,111870.0,1.78954035]
[1756823775421,1e-08,111880.0,111870.0,1.95110035]
[1756823776995,1e-08,111900.0,111890.0,0.63342736]
[1756823777222,1e-08,111900.0,111890.0,2.1373584]
[1756823777483,1e-08,111900.0,111890.0,1.48330335]
[1756823777702,1e-08,111900.0,111890.0,1.88330335]
[1756823777918,1e-08,111900.0,111890.0,1.91016116]
[1756823778380,1e-08,111900.0,111890.0,1.75164116]
[1756823778596,1e-08,111900.0,111890.0,1.91316116]
[1756823778857,1e-08,111900.0,111890.0,1.91616116]
[1756823779043,1e-08,111900.0,111890.0,1.91316116]
[1756823779296,1e-08,111900.0,111890.0,1.74864116]
[1756823779515,1e-08,111900.0,111890.0,1.91016116]
[1756823779752,1e-08,111900.0,111890.0,1.91416116]
[1756823779964,0.26574208,111930.0,111920.0,1.2374345]
[1756823780243,0.26574208,111930.0,111920.0,1.56467049]
[1756823780467,0.26574208,111930.0,111920.0,2.26872554]
[1756823780468,1e-08,111930.0,111920.0,2.26872554]
[1756823780678,1e-08,111930.0,111920.0,1.61463049]
[1756823780887,1e-08,111930.0,111920.0,1.46396499]
[1756823781100,1e-08,111930.0,111920.0,1.41396499]
[1756823781332,1e-08,111930.0,111920.0,1.652296]
[1756823781960,1e-08,111930.0,111920.0,1.490816]
[1756823782186,1e-08,111930.0,111920.0,1.652296]
[1756823782404,1e-08,111930.0,111920.0,1.655296]
[1756823782621,1e-08,111930.0,111920.0,1.443816]
[1756823782762,1e-08,111930.0,111920.0,1.605296]
[1756823782973,1e-08,111930.0,111920.0,1.41696499]
[1756823783174,0.00134001,111930.0,111920.0,1.57840499]
[1756823783380,0.00134001,111930.0,111920.0,0.17445049]
[1756823783758,0.00134001,111930.0,111920.0,0.89833112]
[1756823783985,0.00134001,111930.0,111920.0,0.93842162]
[1756823784201,0.00134001,111930.0,111920.0,0.42616712]
[1756823784418,0.24550311,111930.0,111920.0,0.29416063]
[1756823784633,0.24550311,111930.0,111920.0,0.27690156]
[1756823784897,0.24550311,111930.0,111920.0,0.11546156]
[1756823785104,0.24550311,111930.0,111920.0,0.27690156]
[1756823785534,0.24550311,111930.0,111920.0,0.11546156]
[1756823785724,0.24550311,111930.0,111920.0,0.27390156]
[1756823786212,0.34946465,111930.0,111920.0,0.23116]
[1756823786447,0.3374191,111930.0,111920.0,0.16244]
[1756823786891,0.24550311,111930.0,111920.0,0.20618156]
[1756823787124,0.24550311,111930.0,111920.0,0.38488063]
[1756823787340,0.24467311,111930.0,111920.0,0.38488063]
[1756823787565,0.24467311,111930.0,111920.0,0.20618156]
[1756823787798,0.24467311,111930.0,111920.0,0.20518156]
[1756823788023,0.24550311,111930.0,111920.0,0.20518156]
[1756823788242,0.17869907,111920.0,111910.0,0.04374156]
[1756823788459,0.24417907,111920.0,111910.0,0.20514156]
[1756823788683,0.24551907,111920.0,111910.0,0.20514156]
[1756823788918,0.24551907,111920.0,111910.0,0.04374156]
[1756823789167,0.17871503,111910.0,111900.0,0.11246156]
[1756823789388,0.24553503,111910.0,111900.0,0.27386156]
[1756823790972,0.24570503,111910.0,111900.0,0.27386156]
[1756823791178,0.24653503,111910.0,111900.0,0.27386156]
[1756823791414,0.39016603,111910.0,111900.0,0.11246156]
[1756823791653,0.17876296,111880.0,111870.0,0.29124049]
[1756823791866,0.18010296,111880.0,111870.0,0.27394518]
[1756823792091,0.17876296,111880.0,111870.0,0.45272411]
[1756823792320,0.28017507,111910.0,111900.0,0.04374156]
[1756823792540,0.28151507,111910.0,111900.0,0.20514156]
[1756823792763,0.25464078,111910.0,111900.0,0.20514156]
[1756823793268,0.25364078,111910.0,111900.0,0.20514156]
[1756823793485,0.25364078,111910.0,111900.0,0.27386156]
[1756823793929,0.18005503,111910.0,111900.0,0.45259256]
[1756823794156,0.52763402,111920.0,111910.0,0.04374156]
[1756823794157,0.17869907,111920.0,111910.0,0.04374156]
[1756823794375,0.18003907,111920.0,111910.0,0.04374156]
[1756823795050,0.17868311,111930.0,111920.0,0.06468038]
[1756823795280,0.18002311,111930.0,111920.0,0.22608038]
[1756823795495,0.00134001,111930.0,111920.0,0.40477945]
[1756823795698,0.094086,111930.0,111910.0,0.04374156]
[1756823795916,0.094086,111930.0,111910.0,0.20514156]
[1756823795917,0.24417907,111920.0,111910.0,0.20514156]
[1756823796137,0.33743506,111920.0,111910.0,0.1614]
[1756823798123,0.36430738,111920.0,111910.0,0.1614]
[1756823798549,0.17871503,111910.0,111900.0,0.23012]
[1756823798820,0.67745102,111910.0,111900.0,0.1614]
[1756823799033,0.17874698,111890.0,111880.0,0.11728787]
[1756823799261,0.17874698,111890.0,111880.0,0.27873149]
[1756823799563,0.34062297,111890.0,111880.0,8.362e-05]
[1756823799771,0.34062297,111890.0,111880.0,0.16144362]
[1756823800002,0.35123277,111890.0,111880.0,8.362e-05]
[1756823800875,0.35123277,111890.0,111880.0,0.00208362]
[1756823801292,0.35123277,111890.0,111880.0,8.362e-05]
[1756823801293,0.51259277,111890.0,111880.0,8.362e-05]
[1756823801524,0.51359277,111890.0,111880.0,8.362e-05]
[1756823802805,0.54047308,111890.0,111880.0,8.362e-05]
[1756823803443,0.37911308,111890.0,111880.0,8.362e-05]
[1756823803658,0.21857709,111890.0,111880.0,8.362e-05]
[1756823803869,0.19035678,111890.0,111880.0,0.00217362]
[1756823804081,0.19035678,111890.0,111880.0,0.00513362]
[1756823804294,0.19169678,111890.0,111880.0,8.362e-05]
[1756823804880,0.19035678,111890.0,111880.0,0.17884658]
[1756823805097,0.19035678,111890.0,111880.0,0.04887518]
[1756823805303,0.19035678,111890.0,111880.0,0.04591518]
[1756823806423,0.19035678,111890.0,111880.0,0.16144362]
[1756823806424,0.23276149,111890.0,111880.0,0.16144362]
[1756823806625,0.32550748,111890.0,111880.0,8.362e-05]
[1756823806856,0.39329748,111890.0,111880.0,8.362e-05]
[1756823807020,0.73329748,111890.0,111880.0,8.362e-05]
[1756823807294,0.69140277,111890.0,111880.0,8.362e-05]
[1756823807572,0.85276277,111890.0,111880.0,8.362e-05]
[1756823807858,0.19035678,111890.0,111880.0,0.00513362]
[1756823808090,0.19035678,111890.0,111880.0,0.04887518]
[1756823809523,0.19169678,111890.0,111880.0,0.04382518]
[1756823809737,0.19169678,111890.0,111880.0,8.362e-05]
[1756823809962,0.33679297,111890.0,111880.0,8.362e-05]
[1756823810410,0.35223277,111890.0,111880.0,8.362e-05]
[1756823810874,0.35140277,111890.0,111880.0,8.362e-05]
[1756823811121,0.51272277,111890.0,111880.0,8.362e-05]
[1756823811354,0.17974698,111890.0,111880.0,0.00513362]
[1756823811788,0.17974698,111890.0,111880.0,0.22763814]
[1756823812924,0.17974698,111890.0,111880.0,0.04887518]
[1756823813149,0.17974698,111890.0,111880.0,0.21019518]
[1756823813599,0.18108698,111890.0,111880.0,8.362e-05]
[1756823813820,0.32630782,111890.0,111880.0,8.362e-05]
[1756823814312,0.28972351,111890.0,111880.0,8.362e-05]
[1756823814530,0.69834351,111890.0,111880.0,8.362e-05]
[1756823815005,0.69751351,111890.0,111880.0,8.362e-05]
[1756823815524,0.85883351,111890.0,111880.0,8.362e-05]
[1756823815774,0.85966351,111890.0,111880.0,8.362e-05]
[1756823816433,0.45104351,111890.0,111880.0,8.362e-05]
[1756823816654,0.45100351,111890.0,111880.0,8.362e-05]
[1756823817071,0.28972351,111890.0,111880.0,8.362e-05]
[1756823817300,0.45100351,111890.0,111880.0,8.362e-05]
[1756823817967,0.28838351,111890.0,111880.0,0.18389658]
[1756823818456,0.27166297,111890.0,111880.0,0.18389658]
[1756823818887,0.17974698,111890.0,111880.0,0.22763814]
[1756823821294,0.18108698,111890.0,111880.0,0.04382518]
[1756823821956,0.18008698,111890.0,111880.0,0.04382518]
[1756823822182,0.28874557,111890.0,111880.0,8.362e-05]
[1756823822449,0.28957557,111890.0,111880.0,0.00108362]
[1756823822667,0.35736557,111890.0,111880.0,0.00108362]
[1756823823083,0.35736651,111890.0,111880.0,0.00108362]
[1756823823318,0.35653651,111890.0,111880.0,0.00108362]
[1756823823527,0.51777651,111890.0,111880.0,0.00108362]
[1756823824800,0.58944832,111890.0,111880.0,0.00108362]
[1756823825036,0.35653651,111890.0,111880.0,8.362e-05]
[1756823825243,0.10865953,111890.0,111880.0,0.00513362]
[1756823825458,0.13554094,111890.0,111880.0,0.00513362]
[1756823825664,0.31528792,111890.0,111880.0,0.00513362]
[1756823825868,0.27166297,111890.0,111880.0,0.18389658]
[1756823826076,0.17974698,111890.0,111880.0,0.00513362]
[1756823826302,0.1965056,111890.0,111880.0,0.00513362]
[1756823826507,0.17874698,111890.0,111880.0,0.18389658]
[1756823826708,0.17874698,111890.0,111880.0,0.00513362]
[1756823826912,0.17874698,111890.0,111880.0,0.00317362]
[1756823827139,0.17874698,111890.0,111880.0,0.00613362]
[1756823827756,0.2887651,111890.0,111880.0,0.00108362]
[1756823828741,0.2895951,111890.0,111880.0,0.00108362]
[1756823828946,0.2887651,111890.0,111880.0,0.00108362]
[1756823829157,0.4499651,111890.0,111880.0,0.00108362]
[1756823829791,0.4499651,111890.0,111880.0,8.362e-05]
[1756823830203,0.4509651,111890.0,111880.0,8.362e-05]
[1756823830549,0.47028234,111890.0,111880.0,8.362e-05]
[1756823830791,0.64465168,111890.0,111850.0,0.04374156]
[1756823830991,0.1788109,111850.0,111840.0,0.28168787]
[1756823831195,0.1788109,111850.0,111840.0,0.46268513]
[1756823831895,0.1788109,111850.0,111840.0,0.21031193]
[1756823832639,0.1788109,111850.0,111840.0,0.39413882]
[1756823832640,0.19557737,111850.0,111840.0,0.39413882]
[1756823832835,0.19557737,111850.0,111840.0,0.21731193]
[1756823833706,0.19557737,111850.0,111840.0,0.39613882]
[1756823833920,0.19557737,111850.0,111840.0,0.39113882]
[1756823834122,0.01676647,111850.0,111840.0,0.39113882]
[1756823834531,0.17879492,111860.0,111840.0,0.39113882]
[1756823834734,0.28745078,111860.0,111850.0,0.1820509]
[1756823834939,0.01673987,111860.0,111850.0,0.22782246]
[1756823835144,0.17877966,111870.0,111860.0,0.22253645]
[1756823835387,0.20562739,111890.0,111880.0,0.24344334]
[1756823835586,0.24791656,111890.0,111880.0,0.06995038]
[1756823835795,0.22370113,111890.0,111880.0,0.04374156]
[1756823836046,0.17876296,111880.0,111870.0,0.22904038]
[1756823836249,0.17876296,111880.0,111870.0,0.40984931]
[1756823836667,0.17876296,111880.0,111870.0,0.38891049]
[1756823836869,0.19549628,111880.0,111870.0,0.38891049]
[1756823837095,0.01673332,111880.0,111870.0,0.38891049]
[1756823837793,0.01673332,111880.0,111870.0,0.41084931]
[1756823838045,0.01673332,111880.0,111870.0,0.83094441]
[1756823838492,0.1787312,111900.0,111890.0,0.17874698]
[1756823838697,0.19546289,111900.0,111890.0,0.16112]
[1756823838905,0.19546289,111900.0,111890.0,0.16315]
[1756823839105,0.19546289,111900.0,111890.0,0.16639]
[1756823839520,0.17874698,111890.0,111880.0,0.04374156]
[1756823839724,0.19547867,111890.0,111880.0,0.04901156]
[1756823839923,0.19547867,111890.0,111880.0,0.21009156]
[1756823840318,0.19547867,111890.0,111880.0,0.38885452]
[1756823840687,0.01673169,111890.0,111880.0,0.40979334]
[1756823841338,0.001,111890.0,111880.0,0.82988844]
[1756823841566,0.001,111890.0,111880.0,0.40979334]
[1756823841775,0.001,111890.0,111880.0,0.82988844]
[1756823841977,0.001,111890.0,111880.0,0.40979334]
[1756823842187,0.17974698,111890.0,111880.0,0.23103038]
[1756823842446,0.17974698,111890.0,111880.0,0.40979334]
[1756823842652,0.001,111890.0,111880.0,0.40979334]
[1756823842856,0.17974698,111890.0,111880.0,0.06995038]
[1756823843066,0.17874698,111890.0,111880.0,0.40975334]
[1756823843278,0.17871657,111910.0,111900.0,0.04374156]
[1756823843490,0.17871657,111910.0,111900.0,0.38878256]
[1756823843694,0.17871657,111910.0,111900.0,0.21005156]
[1756823843905,0.17871657,111910.0,111900.0,0.38878256]
[1756823844111,0.18901337,111910.0,111900.0,0.38878256]
[1756823844318,0.17871657,111910.0,111900.0,0.38878256]
[1756823844766,0.17871503,111910.0,111900.0,0.38978256]
[1756823845189,0.17880196,111920.0,111900.0,0.38978256]
[1756823845397,0.28758057,111920.0,111910.0,0.17871503]
[1756823845604,0.28758057,111920.0,111910.0,0.00527]
[1756823845821,0.01686262,111920.0,111910.0,0.22772659]
[1756823846031,0.17883939,111920.0,111910.0,0.22772659]
[1756823846239,0.17883939,111920.0,111910.0,0.04901156]
[1756823846447,0.18017939,111920.0,111910.0,0.20677156]
[1756823846656,0.17883939,111920.0,111910.0,0.38872659]
[1756823846907,0.17883939,111920.0,111910.0,0.22772659]
[1756823847096,0.17883939,111920.0,111910.0,0.38872659]
[1756823847313,0.18117939,111920.0,111910.0,0.04374156]
[1756823847524,0.18117939,111920.0,111910.0,0.20474156]
[1756823847737,0.17871503,111910.0,111900.0,0.22571034]
[1756823847943,0.17871503,111910.0,111900.0,0.38874256]
[1756823848151,0.17983939,111920.0,111900.0,0.38874256]
[1756823848371,0.17983939,111920.0,111910.0,0.04698156]
[1756823848575,0.17983939,111920.0,111910.0,0.22772659]
[1756823848782,0.00114032,111920.0,111910.0,0.22772659]
[1756823849016,0.17983939,111920.0,111910.0,0.04901156]
[1756823849243,0.17983939,111920.0,111910.0,0.22772659]
[1756823849460,0.17983939,111920.0,111910.0,0.04698156]
[1756823849680,0.17983939,111920.0,111910.0,0.20794156]
[1756823849894,0.17983939,111920.0,111910.0,0.38868659]
[1756823850388,0.17883939,111920.0,111910.0,0.04901156]
[1756823850611,0.18117939,111920.0,111910.0,0.04374156]
[1756823850846,0.17871503,111910.0,111900.0,0.04374156]
[1756823851050,0.178731,111900.0,111890.0,0.20466156]
[1756823851185,0.178731,111900.0,111890.0,0.20669156]
[1756823851429,0.178731,111900.0,111890.0,0.20993156]
[1756823851636,0.19056933,111900.0,111890.0,0.04374156]
[1756823851841,0.17874698,111890.0,111880.0,0.04374156]
[1756823852049,0.17874698,111890.0,111880.0,0.20466156]
[1756823852271,0.17874698,111890.0,111880.0,0.38869452]
[1756823852919,0.18922933,111900.0,111880.0,0.38869452]
[1756823853281,0.17874698,111890.0,111880.0,0.38869452]
[1756823853887,0.17874698,111890.0,111880.0,0.20993156]
[1756823854115,0.18008698,111890.0,111880.0,0.20662156]
[1756823854326,0.18922933,111900.0,111880.0,0.39065452]
[1756823854567,0.18922933,111900.0,111890.0,0.00324]
[1756823854794,0.178731,111900.0,111890.0,0.22775854]
[1756823855008,0.21452498,111910.0,111900.0,0.04374156]
[1756823855230,0.18765078,111910.0,111900.0,0.38538256]
[1756823855476,0.18765078,111910.0,111900.0,0.20989156]
[1756823856543,0.17871503,111910.0,111900.0,0.38862256]
[1756823856806,0.18777434,111920.0,111910.0,0.04374156]
[1756823857016,0.18777434,111920.0,111910.0,0.04577156]
[1756823857225,0.18777434,111920.0,111910.0,0.04901156]
[1756823857440,0.17883939,111920.0,111910.0,0.04901156]
[1756823858175,0.17883939,111920.0,111910.0,0.04801156]
[1756823858798,0.18017939,111920.0,111910.0,0.20358156]
[1756823859434,0.19045733,111920.0,111910.0,0.20358156]
[1756823859856,0.19045733,111920.0,111910.0,0.04274156]
[1756823860066,0.178731,111900.0,111890.0,0.04274156]
[1756823860287,0.17876296,111880.0,111870.0,0.14530631]
[1756823860513,0.18010296,111880.0,111870.0,0.04274156]
[1756823860742,0.17877893,111870.0,111860.0,0.20354156]
[1756823860954,0.18011893,111870.0,111860.0,0.20354156]
[1756823861382,0.17877893,111870.0,111860.0,0.20855156]
[1756823861591,0.17877893,111870.0,111860.0,0.20869193]
[1756823862012,0.18011893,111870.0,111860.0,0.20368193]
[1756823862252,0.17877893,111870.0,111860.0,0.20869193]
[1756823862667,0.18900861,111870.0,111860.0,0.20869193]
[1756823863104,0.18900861,111870.0,111860.0,0.20368193]
[1756823863337,0.17877893,111870.0,111860.0,0.20565193]
[1756823863550,0.17877893,111870.0,111860.0,0.20869193]
[1756823863748,0.17877893,111870.0,111860.0,0.21069193]
[1756823864029,0.18011893,111870.0,111860.0,0.04588193]
[1756823864232,0.18011893,111870.0,111860.0,0.20668193]
[1756823864643,0.18011893,111870.0,111860.0,0.20568193]
[1756823864862,0.27203492,111870.0,111860.0,0.16290037]
[1756823865030,0.28874596,111870.0,111860.0,0.16490037]
[1756823865444,0.5277011,111880.0,111870.0,0.21125404]
[1756823865724,0.61961709,111880.0,111870.0,0.21125404]
[1756823865931,0.62588304,111880.0,111870.0,0.21125404]
[1756823866138,0.63017301,111880.0,111870.0,0.21125404]
[1756823867349,0.63017301,111880.0,111870.0,0.21325404]
[1756823867564,0.22513873,111880.0,111870.0,0.21826404]
[1756823867930,0.19825702,111880.0,111870.0,0.2610056]
[1756823868192,0.18931888,111880.0,111870.0,0.2610056]
[1756823868392,0.18931888,111880.0,111870.0,0.2590356]
[1756823868594,0.18931888,111880.0,111870.0,0.4197956]
[1756823869542,0.18931888,111880.0,111870.0,0.4217656]
[1756823870004,0.18768432,111890.0,111870.0,0.4217656]
[1756823870230,0.18768432,111890.0,111880.0,0.04578156]
[1756823870446,0.22521951,111890.0,111880.0,0.04578156]
[1756823870675,0.22521951,111890.0,111880.0,0.20346156]
[1756823870898,0.18768432,111890.0,111880.0,0.20847156]
[1756823871116,0.18766755,111900.0,111880.0,0.38723452]
[1756823871337,0.17874698,111890.0,111880.0,0.38723452]
[1756823871562,0.001,111890.0,111880.0,0.49704933]
[1756823871779,0.001,111890.0,111880.0,0.91714443]
[1756823872002,0.17873214,111900.0,111880.0,0.49704933]
[1756823872427,0.17873214,111900.0,111890.0,0.20246156]
[1756823872637,0.17873214,111900.0,111890.0,0.20550156]
[1756823872850,0.17873214,111900.0,111890.0,0.38621854]
[1756823873494,0.17873214,111900.0,111890.0,0.20747156]
[1756823873908,0.17875828,111890.0,111880.0,0.04478156]
[1756823874111,0.17875828,111890.0,111880.0,0.20743156]
[1756823874529,0.17875828,111890.0,111880.0,0.20242156]
[1756823874729,0.17876296,111880.0,111870.0,0.3247956]
[1756823874933,0.17876296,111880.0,111870.0,0.4874456]
[1756823875159,0.17876296,111880.0,111870.0,0.2580056]
[1756823875390,0.17876296,111880.0,111870.0,0.21125404]
[1756823875601,0.17876296,111880.0,111870.0,0.37189404]
[1756823876047,0.27067895,111880.0,111870.0,0.37189404]
[1756823876252,0.33480895,111880.0,111870.0,0.37189404]
[1756823876474,0.54949384,111880.0,111870.0,0.21125404]
[1756823876703,0.49544895,111880.0,111870.0,0.21325404]
[1756823876978,0.33480895,111880.0,111870.0,0.21325404]
[1756823877183,0.49544895,111880.0,111870.0,0.21125404]
[1756823877907,0.49544895,111880.0,111870.0,0.21225404]
[1756823878153,0.49544895,111880.0,111870.0,0.21125404]
[1756823878385,0.33480895,111880.0,111870.0,0.21125404]
[1756823878601,0.17876296,111880.0,111870.0,0.21626404]
[1756823879553,0.27067895,111880.0,111870.0,0.37189404]
[1756823880192,0.27067895,111880.0,111870.0,0.37386404]
[1756823880449,0.17876296,111880.0,111870.0,0.37690404]
[1756823880854,0.17876296,111880.0,111870.0,0.37790404]
[1756823881065,0.17876296,111880.0,111870.0,0.37289404]
[1756823881284,0.17876296,111880.0,111870.0,0.37189404]
[1756823881514,0.23326325,111880.0,111870.0,0.37189404]
[1756823881723,0.32517924,111880.0,111870.0,0.37285404]
[1756823881936,0.27067895,111880.0,111870.0,0.37185404]
[1756823882362,0.27067895,111880.0,111870.0,0.37485404]
[1756823883206,0.27067895,111880.0,111870.0,0.21425404]
[1756823883840,0.61067895,111880.0,111870.0,0.21425404]
[1756823884061,0.7729887,111880.0,111870.0,0.21125404]
[1756823884289,0.68107271,111880.0,111870.0,0.21125404]
[1756823884710,0.6810725,111880.0,111870.0,0.21125404]
[1756823886283,0.70795729,111880.0,111870.0,0.21125404]
[1756823886460,0.51877893,111870.0,111860.0,0.00014037]
[1756823886703,0.86939446,111870.0,111860.0,0.00014037]
[1756823886921,0.93352446,111870.0,111860.0,0.00014037]
[1756823888154,0.51879492,111860.0,111850.0,0.1]
[1756823888328,0.61697446,111860.0,111850.0,0.1]
[1756823888554,0.68110446,111860.0,111850.0,0.1]
[1756823889329,0.77302045,111860.0,111850.0,0.1]
[1756823890331,0.79991093,111860.0,111850.0,0.1]
[1756823890577,0.70799494,111860.0,111850.0,0.1]
[1756823890801,0.80438494,111860.0,111850.0,0.1]
[1756823890982,0.64486494,111860.0,111850.0,0.1]
[1756823891244,0.64486494,111860.0,111850.0,0.10493]
[1756823891455,0.80534494,111860.0,111850.0,0.10493]
[1756823891873,0.89726093,111860.0,111850.0,0.10294]
[1756823892297,0.89726093,111860.0,111850.0,0.1]
[1756823893179,0.89926093,111860.0,111850.0,0.1]
[1756823894148,0.80734494,111860.0,111850.0,0.1]
[1756823894760,0.17882689,111840.0,111830.0,0.00294]
[1756823894966,0.27700643,111840.0,111830.0,0.00294]
[1756823895550,0.27700643,111840.0,111830.0,0.00493]
[1756823895758,0.31893073,111840.0,111830.0,0.00493]
[1756823895964,0.27700643,111840.0,111830.0,0.00493]
[1756823896497,0.27700114,111840.0,111830.0,0.002]
[1756823896713,0.27700114,111840.0,111830.0,0.00399]
[1756823896925,0.27700114,111840.0,111830.0,0.00693]
[1756823897348,0.27700114,111840.0,111830.0,0.00793]
[1756823898288,0.18508515,111840.0,111830.0,0.00793]
[1756823898537,0.18508515,111840.0,111830.0,0.16837]
[1756823898945,0.18508515,111840.0,111830.0,0.21011156]
[1756823899182,0.17882689,111840.0,111830.0,0.04967156]
[1756823899401,0.18508267,111840.0,111830.0,0.04967156]
[1756823899616,0.27699866,111840.0,111830.0,0.00793]
[1756823899844,0.27699866,111840.0,111830.0,0.00499]
[1756823900057,0.27699866,111840.0,111830.0,0.00793]
[1756823900058,0.18508267,111840.0,111830.0,0.00793]
[1756823900272,0.18508267,111840.0,111830.0,0.04967156]
[1756823900453,0.17882689,111840.0,111830.0,0.04967156]
[1756823901440,0.17882689,111840.0,111830.0,0.21007156]
[1756823902250,0.18508727,111840.0,111830.0,0.21007156]
[1756823905458,0.18508727,111840.0,111830.0,0.04967156]
[1756823905669,0.18508727,111840.0,111830.0,0.21003156]
[1756823906272,0.1851001,111840.0,111830.0,0.21003156]
[1756823906474,0.1851001,111840.0,111830.0,0.20999156]
[1756823907452,0.47462269,111840.0,111830.0,0.003]
[1756823908043,0.43733609,111840.0,111830.0,0.003]
[1756823908448,0.43733609,111840.0,111830.0,0.002]
[1756823909210,0.84693609,111840.0,111830.0,0.002]
[1756823910299,0.17885888,111820.0,111810.0,0.16326]
[1756823910521,0.27704808,111820.0,111810.0,0.00294]
[1756823910734,0.17887487,111810.0,111800.0,0.27556787]
[1756823910951,0.18514808,111810.0,111800.0,0.27556787]
[1756823911194,0.18514808,111810.0,111800.0,0.45938874]
[1756823911406,0.18514808,111810.0,111800.0,0.20695156]
[1756823911639,0.17887487,111810.0,111800.0,0.20741946]
[1756823911855,0.18514999,111810.0,111800.0,0.04713946]
[1756823912067,0.18514999,111810.0,111800.0,0.20741946]
[1756823912275,0.18514999,111810.0,111800.0,0.04713946]
[1756823912495,0.35159804,111810.0,111800.0,0.0004679]
[1756823913332,0.69159804,111810.0,111800.0,0.0004679]
[1756823914029,0.85187804,111810.0,111800.0,0.0004679]
[1756823914465,0.92147804,111810.0,111800.0,0.0044679]
[1756823914679,0.92147804,111810.0,111800.0,0.0034679]
[1756823915109,0.92147804,111810.0,111800.0,0.0054679]
[1756823915325,0.92147804,111810.0,111800.0,0.0024679]
[1756823915534,0.92147804,111810.0,111800.0,0.0004679]
[1756823915737,0.92247804,111810.0,111800.0,0.0004679]